bitfinex-derivatives/quotes_SOLF0:USTF0_20250905
["timestamp","ask_amount","ask_price","bid_price","bid_amount"]
[1757037416826,0.0364016,203.54,203.52,8.0]
[1757037417031,0.0364016,203.54,203.51,1.35956805]
[1757037417928,0.0364016,203.54,203.52,8.0]
[1757037419033,0.0364016,203.54,203.51,1.35956805]
[1757037419229,0.0364016,203.54,203.52,8.0]
[1757037419631,0.0364016,203.54,203.51,1.35956805]
[1757037420032,0.0364016,203.54,203.52,8.0]
[1757037420236,0.0364016,203.54,203.51,1.35956805]
[1757037420432,0.0364016,203.54,203.52,8.0]
[1757037420629,0.0364016,203.54,203.51,1.35956805]
[1757037421029,0.0364016,203.54,203.52,8.0]
[1757037421228,8.1264016,203.54,203.52,8.0]
[1757037421428,8.1264016,203.54,203.5,8.0]
[1757037421832,8.1264016,203.54,203.49,1.35956805]
[1757037422233,8.1264016,203.54,203.5,8.0]
[1757037422428,0.0364016,203.54,203.47,8.0]
[1757037422738,8.09,203.53,203.47,9.35956805]
[1757037426043,0.0364016,203.54,203.47,9.35956805]
[1757037427542,0.0364016,203.54,203.48,1.35956805]
[1757037427836,0.0364016,203.54,203.49,8.0]
[1757037428039,0.0364016,203.54,203.48,1.35956805]
[1757037428441,0.0364016,203.54,203.49,8.0]
[1757037428643,0.0364016,203.54,203.48,1.35956805]
[1757037428843,0.0364016,203.54,203.49,8.0]
[1757037429043,0.0364016,203.54,203.48,1.35956805]
[1757037429245,0.0364016,203.54,203.49,8.0]
[1757037429646,0.0364016,203.54,203.48,1.35956805]
[1757037429948,0.0364016,203.54,203.49,8.0]
[1757037430342,0.0364016,203.54,203.48,1.35956805]
[1757037430542,0.0364016,203.54,203.49,8.0]
[1757037431150,0.0364016,203.54,203.48,1.35956805]
[1757037432146,0.0364016,203.54,203.49,8.0]
[1757037432446,0.0364016,203.54,203.53,8.0]
[1757037433542,8.15,203.57,203.53,8.5]
[1757037433747,8.15,203.57,203.56,9.35956805]
[1757037435353,8.09,203.64,203.56,9.35956805]
[1757037435548,8.09,203.64,203.59,1.35956805]
[1757037435954,8.09,203.64,203.59,1.39097885]
[1757037436154,1.35956805,203.65,203.59,1.39097885]
[1757037436355,8.09,203.64,203.59,1.39097885]
[1757037436549,1.35956805,203.67,203.59,1.39097885]
[1757037436749,8.09,203.66,203.59,1.39097885]
[1757037436946,1.35956805,203.65,203.59,0.0314108]
[1757037437455,8.09,203.64,203.59,0.0314108]
[1757037437857,1.35956805,203.65,203.59,0.0314108]
[1757037438061,6.18,203.63,203.59,0.0314108]
[1757037438451,7.92,203.6,203.59,0.0314108]
[1757037440156,9.27956805,203.6,203.59,0.0314108]
[1757037441357,7.92,203.6,203.59,0.0314108]
[1757037441945,1.35956805,203.62,203.59,0.0314108]
[1757037442148,7.92,203.62,203.59,0.0314108]
[1757037442748,6.18,203.63,203.59,0.0314108]
[1757037442955,7.92,203.61,203.59,0.0314108]
[1757037443158,1.35956805,203.62,203.59,0.0314108]
[1757037443558,7.92,203.61,203.59,0.0314108]
[1757037444360,9.27956805,203.6,203.59,0.0314108]
[1757037455664,7.92,203.6,203.59,0.0314108]
[1757037455864,9.27956805,203.6,203.59,0.0314108]
[1757037457462,7.92,203.6,203.59,0.0314108]
[1757037459158,7.92,203.62,203.59,0.0314108]
[1757037459359,7.92,203.62,203.59,7.7214108]
[1757037462573,6.18,203.63,203.59,7.7214108]
[1757037462767,7.92,203.62,203.59,7.7214108]
[1757037467472,7.92,203.65,203.59,0.0314108]
[1757037467675,7.92,203.62,203.59,0.0314108]
[1757037469371,2.1236118,203.6,203.59,0.0314108]
[1757037469577,9.7436118,203.6,203.49,7.89]
[1757037469781,7.62,203.55,203.49,7.89]
[1757037470774,7.62,203.53,203.49,7.89]
[1757037472977,0.03248145,203.54,203.45,7.89]
[1757037473183,7.62,203.53,203.45,7.89]
[1757037473378,7.62,203.53,203.42,316.44]
[1757037473573,7.62,203.5,203.43,7.89]
[1757037474479,0.03300709,203.49,203.43,7.89]
[1757037478177,7.62,203.48,203.43,7.89]
[1757037478376,0.03300709,203.49,203.43,7.89]
[1757037478784,7.65300709,203.49,203.4,7.89]
[1757037488189,7.62,203.47,203.4,7.89]
[1757037496994,9.7436118,203.47,203.4,7.89]
[1757037498499,9.7436118,203.47,203.34,2.1236118]
[1757037498705,9.7436118,203.47,203.35,8.1]
[1757037499004,0.03698077,203.43,203.35,8.1]
[1757037503004,0.03698077,203.43,203.38,8.1]
[1757037503906,0.03698077,203.43,203.38,10.2236118]
[1757037504107,0.03698077,203.43,203.39,8.1]
[1757037509916,0.03698077,203.43,203.37,8.1]
[1757037510121,0.03698077,203.43,203.39,8.1]
[1757037514415,8.96,203.42,203.39,8.1]
[1757037516523,8.96,203.42,203.38,2.1236118]
[1757037517025,8.96,203.42,203.39,8.1]
[1757037517426,8.96,203.42,203.38,6.17288691]
[1757037517928,8.96,203.42,203.39,8.1]
[1757037518124,8.96,203.42,203.38,6.17288691]
[1757037518324,8.96,203.42,203.39,8.1]
[1757037519023,8.96,203.42,203.38,6.17288691]
[1757037519419,8.96,203.42,203.39,8.1]
[1757037520128,8.96,203.42,203.38,6.19055519]
[1757037520622,8.96,203.42,203.39,8.1]
[1757037521325,8.96,203.42,203.38,6.19055519]
[1757037522029,8.96,203.42,203.39,8.1]
[1757037522423,8.96,203.42,203.38,6.19055519]
[1757037522822,8.96,203.42,203.39,8.1]
[1757037523022,8.96,203.42,203.38,6.19055519]
[1757037523422,8.96,203.42,203.39,8.1]
[1757037524026,8.96,203.42,203.38,6.19055519]
[1757037524226,8.96,203.42,203.39,8.1]
[1757037524426,8.96,203.42,203.38,6.19055519]
[1757037524825,17.15,203.42,203.38,6.19055519]
[1757037525030,8.96,203.42,203.39,8.1]
[1757037525527,8.96,203.42,203.41,9.46101566]
[1757037527229,8.96,203.42,203.41,13.52795905]
[1757037527432,0.03698077,203.43,203.41,9.46101566]
[1757037527633,0.03698077,203.43,203.42,8.1]
[1757037529131,7.73,203.52,203.42,128.4]
[1757037529433,7.73,203.52,203.46,1.36101566]
[1757037529735,7.73,203.52,203.48,1.36101566]
[1757037530033,1.36101566,203.53,203.48,1.36101566]
[1757037530230,7.73,203.52,203.48,1.39491737]
[1757037530430,7.73,203.54,203.48,1.39491737]
[1757037530833,7.73,203.54,203.48,0.03390171]
[1757037531033,7.73,203.54,203.48,1.39491737]
[1757037533138,7.73,203.52,203.48,1.39491737]
[1757037533637,1.36101566,203.53,203.48,1.39491737]
[1757037534138,7.73,203.52,203.48,1.39491737]
[1757037534540,1.36101566,203.53,203.48,1.39491737]
[1757037534743,7.73,203.52,203.48,9.18491737]
[1757037535036,1.36101566,203.53,203.48,9.18491737]
[1757037535430,7.73,203.54,203.48,9.18491737]
[1757037536037,7.73,203.54,203.48,1.39491737]
[1757037540742,7.73,203.54,203.48,9.18491737]
[1757037541240,7.73,203.54,203.5,1.36101566]
[1757037541646,7.73,203.54,203.51,7.79]
[1757037542742,7.73,203.58,203.52,1.36101566]
[1757037543247,7.73,203.58,203.53,0.03616077]
[1757037543445,3.67101566,203.59,203.53,0.03616077]
[1757037543944,7.73,203.58,203.53,0.03616077]
[1757037544147,2.31,203.59,203.54,9.15101566]
[1757037544648,7.73,203.58,203.54,9.15101566]
[1757037544849,2.31,203.59,203.54,9.15101566]
[1757037545347,7.73,203.58,203.54,9.15101566]
[1757037545741,2.31,203.59,203.55,7.79]
[1757037546343,7.73,203.58,203.54,9.15101566]
[1757037546846,2.31,203.59,203.54,9.15101566]
[1757037547748,7.73,203.58,203.54,9.15101566]
[1757037547948,2.31,203.59,203.54,9.15101566]
[1757037548147,7.73,203.58,203.54,9.15101566]
[1757037548539,2.31,203.59,203.54,9.15101566]
[1757037549152,7.73,203.58,203.54,9.15101566]
[1757037549650,2.31,203.59,203.54,9.15101566]
[1757037549846,2.31,203.59,203.55,7.79]
[1757037550248,7.73,203.58,203.55,7.79]
[1757037550449,2.31,203.59,203.56,1.36101566]
[1757037550751,2.31,203.59,203.57,7.79]
[1757037551150,10.04,203.59,203.57,7.79]
[1757037551348,2.31,203.59,203.56,1.36101566]
[1757037552151,2.31,203.59,203.57,7.79]
[1757037552355,2.31,203.59,203.58,9.15101566]
[1757037552655,7.73,203.62,203.58,1.36101566]
[1757037552860,7.73,203.62,203.59,7.79]
[1757037555158,7.73,203.62,203.6,1.36101566]
[1757037555456,7.73,203.65,203.6,9.15101566]
[1757037555960,1.36101566,203.66,203.6,9.15101566]
[1757037556157,7.73,203.65,203.6,9.15101566]
[1757037556954,9.09101566,203.67,203.6,1.36101566]
[1757037557655,1.36101566,203.63,203.58,0.03601548]
[1757037557858,7.64,203.62,203.58,0.03601548]
[1757037558056,1.36101566,203.63,203.58,0.03601548]
[1757037558255,7.64,203.62,203.58,0.03601548]
[1757037558457,1.36101566,203.63,203.58,0.03601548]
[1757037558764,7.64,203.62,203.58,0.03601548]
[1757037559761,1.36101566,203.63,203.58,0.03601548]
[1757037559962,2.32,203.68,203.58,0.03601548]
[1757037560161,7.64,203.63,203.58,0.03601548]
[1757037560351,7.64,203.61,203.58,0.03601548]
[1757037560551,7.64,203.59,203.58,0.03601548]
[1757037567361,7.64,203.59,203.48,1.36101566]
[1757037567565,7.64,203.54,203.48,1.36101566]
[1757037568160,7.64,203.54,203.47,7.61]
[1757037568665,0.03142078,203.53,203.47,7.61]
[1757037571177,1.39243644,203.53,203.47,7.61]
[1757037571568,7.64,203.52,203.47,7.61]
[1757037572871,1.39243644,203.53,203.47,7.61]
[1757037573273,0.03142078,203.53,203.48,1.36101566]
[1757037573475,0.03142078,203.53,203.49,7.61]
[1757037573878,0.03142078,203.53,203.51,7.61]
[1757037574976,0.03142078,203.53,203.5,1.36101566]
[1757037575177,0.03142078,203.53,203.51,7.61]
[1757037575377,0.03142078,203.53,203.5,1.36101566]
[1757037575575,0.03142078,203.53,203.51,7.61]
[1757037575773,0.03142078,203.53,203.5,1.36101566]
[1757037576073,0.03142078,203.53,203.52,1.36101566]
[1757037576271,0.03142078,203.53,203.52,8.97101566]
[1757037578781,0.03142078,203.53,203.5,8.97101566]
[1757037579375,7.67142078,203.53,203.5,8.97101566]
[1757037579779,7.64,203.52,203.5,7.61]
[1757037580180,0.03142078,203.53,203.5,7.61]
[1757037580373,7.67142078,203.53,203.5,7.61]
[1757037582184,0.03142078,203.53,203.5,7.61]
[1757037582384,0.03142078,203.53,203.52,7.61]
[1757037594891,7.87142078,203.53,203.49,7.43]
[1757037595094,7.87142078,203.53,203.48,122.2247382]
[1757037595295,7.87142078,203.53,203.49,7.43]
[1757037595484,7.87142078,203.53,203.48,122.2247382]
[1757037595690,7.87142078,203.53,203.49,7.43]
[1757037595892,7.87142078,203.53,203.48,122.2247382]
[1757037596293,7.87142078,203.53,203.49,7.43]
[1757037596697,7.87142078,203.53,203.48,122.2247382]
[1757037597294,7.87142078,203.53,203.49,7.43]
[1757037597497,7.87142078,203.53,203.48,122.2247382]
[1757037598800,7.87142078,203.53,203.49,7.43]
[1757037599000,7.87142078,203.53,203.48,122.2247382]
[1757037599897,7.87142078,203.53,203.49,7.43]
[1757037600098,2.34,203.52,203.48,122.2247382]
[1757037600298,2.34,203.52,203.49,7.43]
[1757037600702,2.34,203.52,203.48,122.2247382]
[1757037600902,2.34,203.52,203.49,7.43]
[1757037601698,7.84,203.62,203.52,7.43]
[1757037601902,5.49412266,203.69,203.57,7.43]
[1757037602203,7.84,203.69,203.59,7.43]
[1757037602997,7.84,203.69,203.62,0.03097527]
[1757037605303,7.84,203.66,203.62,0.03097527]
[1757037607100,5.49412266,203.7,203.62,0.03097527]
[1757037607101,9.9647382,203.69,203.62,0.03097527]
[1757037610702,7.84,203.69,203.62,0.03097527]
[1757037610902,9.9647382,203.69,203.62,0.03097527]
[1757037612604,7.84,203.69,203.62,0.03097527]
[1757037612907,9.9647382,203.69,203.62,0.03097527]
[1757037616008,7.84,203.65,203.62,0.03097527]
[1757037617313,7.84,203.65,203.51,13.8047382]
[1757037617314,9.9647382,203.63,203.52,7.43]
[1757037617507,2.1247382,203.6,203.52,7.43]
[1757037617708,7.84,203.59,203.52,7.43]
[1757037618507,0.03302389,203.58,203.52,7.43]
[1757037618914,8.13,203.57,203.52,7.43]
[1757037619118,8.13,203.57,203.49,7.48]
[1757037625916,0.03302389,203.58,203.51,2.1247382]
[1757037626115,0.03302389,203.58,203.54,2.1247382]
[1757037626315,0.03302389,203.58,203.55,7.48]
[1757037627318,0.03302389,203.58,203.54,7.48]
[1757037627813,0.03302389,203.58,203.53,34.9647382]
[1757037628119,0.03302389,203.58,203.51,59.58]
[1757037628421,0.03302389,203.58,203.51,52.1]
[1757037628619,0.03302389,203.58,203.52,7.48]
[1757037631716,8.13,203.57,203.48,7.48]
[1757037631917,8.13,203.55,203.48,7.48]
[1757037632115,8.13,203.55,203.44,7.48]
[1757037632522,0.03101532,203.52,203.44,7.48]
[1757037632921,0.03101532,203.52,203.46,7.48]
[1757037635025,10.2547382,203.63,203.52,7.48]
[1757037635219,8.13,203.63,203.52,7.48]
[1757037636316,8.13,203.63,203.56,7.48]
[1757037637318,10.2547382,203.63,203.55,0.03231818]
[1757037637526,2.1247382,203.6,203.55,0.03231818]
[1757037637918,8.13,203.59,203.55,0.03231818]
[1757037638518,2.1247382,203.6,203.55,0.03231818]
[1757037638728,8.13,203.59,203.55,0.03231818]
[1757037640123,2.1247382,203.57,203.55,0.03231818]
[1757037640327,8.13,203.56,203.55,0.03231818]
[1757037645525,9.49050622,203.56,203.55,0.03231818]
[1757037646621,9.49050622,203.56,203.45,7.48]
[1757037646822,1.36050622,203.51,203.45,7.48]
[1757037647429,1.36050622,203.5,203.45,7.48]
[1757037647822,1.36050622,203.5,203.45,7.52]
[1757037648022,1.39241428,203.5,203.44,7.52]
[1757037650626,8.99050622,203.47,203.41,1.36050622]
[1757037651228,7.66400609,203.46,203.42,7.52]
[1757037651425,7.66400609,203.46,203.41,1.36050622]
[1757037651834,7.66400609,203.46,203.42,7.52]
[1757037652930,7.63,203.45,203.42,7.52]
[1757037653130,7.63,203.45,203.39,1.36050622]
[1757037653330,0.03400609,203.46,203.41,1.36050622]
[1757037653529,0.03400609,203.46,203.44,7.52]
[1757037653725,0.03400609,203.46,203.43,1.36050622]
[1757037654328,0.03400609,203.46,203.36,4.4252]
[1757037654527,0.03400609,203.46,203.42,1.36050622]
[1757037654734,0.03400609,203.46,203.45,7.52]
[1757037658133,0.03400609,203.46,203.42,1.36050622]
[1757037658336,0.03400609,203.46,203.43,7.52]
[1757037659638,0.03400609,203.46,203.42,1.36050622]
[1757037659840,0.03400609,203.46,203.43,7.52]
[1757037660337,0.03400609,203.46,203.45,8.88050622]
[1757037662940,0.03400609,203.46,203.45,9.38050622]
[1757037663844,7.63,203.55,203.49,7.52]
[1757037664046,1.36050622,203.56,203.5,1.36050622]
[1757037664244,8.99050622,203.58,203.5,8.88050622]
[1757037664742,7.63,203.58,203.52,1.36050622]
[1757037664948,7.63,203.58,203.52,1.39761514]
[1757037665149,1.36050622,203.6,203.54,1.36050622]
[1757037666843,1.36050622,203.6,203.53,7.52]
[1757037667045,1.36050622,203.6,203.53,8.88050622]
[1757037670356,7.63,203.61,203.53,8.88050622]
[1757037670555,1.36050622,203.6,203.53,8.88050622]
[1757037672162,7.63,203.61,203.53,8.88050622]
[1757037672353,1.36050622,203.59,203.53,8.88050622]
[1757037673567,8.99050622,203.61,203.53,8.88050622]
[1757037673862,8.99050622,203.61,203.55,1.36050622]
[1757037674360,8.99050622,203.61,203.55,8.88050622]
[1757037674563,1.36050622,203.63,203.55,8.88050622]
[1757037675159,1.36050622,203.63,203.5,4.4221]
[1757037675160,1.36050622,203.63,203.58,7.52]
[1757037675359,7.63,203.64,203.57,1.39252959]
[1757037675559,7.63,203.64,203.58,7.52]
[1757037678856,7.63,203.64,203.6,8.12]
[1757037679273,7.63,203.64,203.59,1.36050622]
[1757037679762,7.63,203.64,203.6,8.12]
[1757037683468,9.46050622,203.67,203.6,8.12]
[1757037684067,9.46050622,203.67,203.61,0.03735241]
[1757037684965,8.1,203.71,203.63,1.36050622]
[1757037685165,8.1,203.71,203.65,1.36050622]
[1757037685369,8.1,203.71,203.64,9.48050622]
[1757037685562,1.36050622,203.72,203.66,0.03546682]
[1757037685762,8.1,203.71,203.66,0.03546682]
[1757037685964,1.36050622,203.72,203.66,0.03546682]
[1757037686270,1.36050622,203.7,203.66,0.03546682]
[1757037686466,8.1,203.69,203.66,0.03546682]
[1757037686666,1.36050622,203.7,203.66,0.03546682]
[1757037686867,8.1,203.69,203.66,0.03546682]
[1757037687168,1.36050622,203.7,203.66,0.03546682]
[1757037687370,8.1,203.69,203.66,0.03546682]
[1757037687668,1.36050622,203.7,203.66,0.03546682]
[1757037687867,8.1,203.69,203.66,0.03546682]
[1757037688063,1.36050622,203.7,203.66,0.03546682]
[1757037688267,8.1,203.69,203.66,0.03546682]
[1757037688468,41.62,203.76,203.66,0.03546682]
[1757037688664,8.1,203.7,203.66,0.03546682]
[1757037688868,1.36050622,203.71,203.66,0.03546682]
[1757037689061,8.1,203.7,203.66,0.03546682]
[1757037689260,1.36050622,203.71,203.66,0.03546682]
[1757037689665,8.1,203.7,203.66,0.03546682]
[1757037690365,1.36050622,203.71,203.66,0.03546682]
[1757037691362,8.1,203.7,203.66,0.03546682]
[1757037691574,1.36050622,203.71,203.66,0.03546682]
[1757037691871,8.1,203.7,203.66,0.03546682]
[1757037692671,1.36050622,203.71,203.66,0.03546682]
[1757037692975,8.1,203.7,203.66,0.03546682]
[1757037693469,9.46050622,203.67,203.66,0.03546682]
[1757037694474,8.1,203.67,203.66,0.03546682]
[1757037694673,9.46050622,203.67,203.66,0.03546682]
[1757037700475,9.96050622,203.67,203.56,8.12]
[1757037700677,8.1,203.59,203.56,8.12]
[1757037701576,1.36050622,203.64,203.56,8.12]
[1757037701878,0.03193697,203.6,203.57,1.36050622]
[1757037702073,0.03193697,203.6,203.58,8.12]
[1757037702478,0.03193697,203.6,203.57,1.36050622]
[1757037702673,0.03193697,203.6,203.58,8.12]
[1757037703068,0.03193697,203.6,203.57,1.36050622]
[1757037703272,0.03193697,203.6,203.58,8.12]
[1757037703476,0.03193697,203.6,203.57,1.36050622]
[1757037703677,0.03193697,203.6,203.58,8.12]
[1757037704478,0.03193697,203.6,203.57,1.36050622]
[1757037705077,0.03193697,203.6,203.59,9.48050622]
[1757037707282,0.03193697,203.6,203.59,9.98050622]
[1757037707583,0.03193697,203.6,203.59,8.62]
[1757037711487,0.03193697,203.6,203.59,8.12]
[1757037714786,8.21193697,203.6,203.54,7.63]
[1757037715681,8.18,203.59,203.55,0.0315959]
[1757037715886,8.18,203.59,203.56,7.63]
[1757037716587,0.03193697,203.6,203.55,0.0315959]
[1757037716786,8.18,203.59,203.55,0.0315959]
[1757037720786,10.30267997,203.59,203.55,0.0315959]
[1757037721086,8.18,203.58,203.55,0.0315959]
[1757037721483,10.30267997,203.56,203.55,0.0315959]
[1757037722687,8.18,203.56,203.55,0.0315959]
[1757037722886,10.30267997,203.56,203.55,0.0315959]
[1757037723491,8.18,203.56,203.55,0.0315959]
[1757037723692,10.30267997,203.56,203.55,0.0315959]
[1757037724784,8.18,203.56,203.55,0.0315959]
[1757037731392,10.30267997,203.56,203.55,0.0315959]
[1757037732189,10.80267997,203.56,203.55,0.0315959]
[1757037732494,10.80267997,203.56,203.47,7.63]
[1757037732689,10.30267997,203.56,203.47,7.63]
[1757037733392,8.18,203.56,203.47,7.63]
[1757037733593,8.21577105,203.54,203.47,7.63]
[1757037734492,8.18,203.52,203.42,7.63]
[1757037735195,0.03603851,203.49,203.42,7.63]
[1757037735491,8.21603851,203.49,203.42,7.63]
[1757037738001,8.21603851,203.49,203.38,120.28]
[1757037738293,7.94,203.48,203.39,7.92]
[1757037738694,7.94,203.46,203.39,7.92]
[1757037739291,0.03526428,203.45,203.39,7.92]
[1757037739591,7.94,203.44,203.39,7.92]
[1757037739894,7.97526428,203.45,203.39,7.92]
[1757037741491,7.94,203.43,203.35,7.92]
[1757037744998,0.03526428,203.45,203.35,7.92]
[1757037744999,2.12267997,203.41,203.35,7.92]
[1757037745200,10.06267997,203.41,203.35,7.92]
[1757037745601,7.94,203.39,203.35,7.92]
[1757037746497,0.03755958,203.4,203.3,7.92]
[1757037751103,0.03755958,203.4,203.31,7.92]
[1757037753699,0.03755958,203.4,203.34,7.92]
[1757037754099,0.03755958,203.4,203.35,7.92]
[1757037756002,0.03755958,203.4,203.36,7.92]
[1757037756202,0.03755958,203.4,203.35,7.92]
[1757037757202,0.03755958,203.4,203.34,120.24]
[1757037757505,0.03755958,203.4,203.35,7.92]
[1757037767417,0.03755958,203.4,203.36,1.36175931]
[1757037767716,0.03755958,203.4,203.37,7.92]
[1757037768016,0.03755958,203.4,203.36,1.36175931]
[1757037770519,0.03755958,203.4,203.37,8.16]
[1757037771222,0.03755958,203.4,203.36,1.36175931]
[1757037771922,0.03755958,203.4,203.37,8.16]
[1757037772623,0.03755958,203.4,203.37,1.36175931]
[1757037772918,0.03755958,203.4,203.38,8.16]
[1757037773122,0.03755958,203.4,203.37,1.36175931]
[1757037773524,0.03755958,203.4,203.38,8.16]
[1757037774116,0.03755958,203.4,203.37,1.36175931]
[1757037774321,0.03755958,203.4,203.38,8.16]
[1757037774919,0.03755958,203.4,203.37,1.36175931]
[1757037775118,0.03755958,203.4,203.38,8.16]
[1757037775318,0.03755958,203.4,203.37,1.36175931]
[1757037775523,0.03755958,203.4,203.38,8.16]
[1757037775821,0.03755958,203.4,203.37,1.36175931]
[1757037777128,0.03755958,203.4,203.38,8.16]
[1757037777631,0.03755958,203.4,203.36,1.36175931]
[1757037778130,0.03755958,203.4,203.37,8.16]
[1757037778327,0.03755958,203.4,203.36,1.36175931]
[1757037778831,0.03755958,203.4,203.37,8.16]
[1757037779030,0.03755958,203.4,203.36,1.36175931]
[1757037779221,0.03755958,203.4,203.34,128.4]
[1757037779424,0.03755958,203.4,203.36,8.16]
[1757037781434,0.03755958,203.4,203.34,124.29121524]
[1757037781637,0.03755958,203.4,203.36,1.36175931]
[1757037781932,0.03755958,203.4,203.37,8.16]
[1757037782334,0.03755958,203.4,203.36,1.36175931]
[1757037782736,0.03755958,203.4,203.37,8.16]
[1757037783036,0.03755958,203.4,203.36,1.36175931]
[1757037783538,0.03755958,203.4,203.37,8.16]
[1757037783735,0.03755958,203.4,203.35,4.05121524]
[1757037783938,0.03755958,203.4,203.36,1.36175931]
[1757037784437,0.03755958,203.4,203.37,8.16]
[1757037784631,0.03755958,203.4,203.36,1.36175931]
[1757037784837,0.03755958,203.4,203.37,8.16]
[1757037785030,0.03755958,203.4,203.36,1.36175931]
[1757037785444,0.03755958,203.4,203.34,124.29121524]
[1757037785445,1.36175931,203.37,203.34,8.16]
[1757037785641,9.33175931,203.37,203.34,8.16]
[1757037785842,7.97,203.36,203.34,8.16]
[1757037786241,7.97,203.36,203.31,4.05121524]
[1757037786434,7.97,203.36,203.32,8.16]
[1757037786930,7.97,203.34,203.32,8.16]
[1757037787331,1.36175931,203.35,203.29,120.22]
[1757037787535,9.33175931,203.35,203.29,128.38]
[1757037789530,7.97,203.35,203.3,8.16]
[1757037789734,0.03595335,203.36,203.32,8.16]
[1757037789934,8.00595335,203.36,203.31,1.36175931]
[1757037790539,0.03595335,203.36,203.31,1.36175931]
[1757037790741,0.03595335,203.36,203.34,8.16]
[1757037791240,0.03595335,203.36,203.33,1.36175931]
[1757037791442,0.03595335,203.36,203.35,9.52175931]
[1757037791939,0.03595335,203.36,203.35,8.16]
[1757037792132,0.03595335,203.36,203.35,9.52175931]
[1757037793551,0.03595335,203.36,203.35,8.16]
[1757037794845,5.4932631,203.48,203.35,8.66]
[1757037795053,5.4932631,203.5,203.47,1.36175931]
[1757037795234,7.97,203.56,203.47,1.36175931]
[1757037795235,7.97,203.56,203.48,8.16]
[1757037795448,6.85502241,203.61,203.54,1.36175931]
[1757037795645,5.4932631,203.62,203.55,8.16]
[1757037795947,1.36175931,203.66,203.59,1.36175931]
[1757037796140,7.97,203.67,203.59,1.36175931]
[1757037796842,9.33175931,203.71,203.63,1.36175931]
[1757037797049,9.33175931,203.71,203.61,8.16]
[1757037797248,9.33175931,203.71,203.63,1.36175931]
[1757037798343,1.36175931,203.69,203.61,9.52175931]
[1757037798539,8.08,203.68,203.61,9.52175931]
[1757037798950,9.44175931,203.67,203.61,1.36175931]
[1757037802346,9.44175931,203.67,203.59,7.78]
[1757037802347,8.08,203.65,203.55,32.7]
[1757037802551,8.08,203.63,203.56,9.14175931]
[1757037803553,8.08,203.68,203.6,1.36175931]
[1757037803749,9.44175931,203.68,203.62,1.36175931]
[1757037804253,9.44175931,203.68,203.59,7.78]
[1757037804254,9.44175931,203.68,203.6,1.36175931]
[1757037806356,1.36175931,203.66,203.6,1.36175931]
[1757037807257,1.36175931,203.64,203.47,7.78]
[1757037807555,8.08,203.63,203.57,1.36175931]
[1757037808055,9.44175931,203.66,203.6,7.78]
[1757037808258,8.08,203.66,203.62,7.78]
[1757037808457,9.44175931,203.7,203.63,1.36175931]
[1757037810655,1.36175931,203.64,203.58,7.78]
[1757037810851,8.08,203.65,203.58,7.78]
[1757037811250,1.36175931,203.64,203.58,7.78]
[1757037811852,9.44175931,203.65,203.58,7.78]
[1757037813063,9.44175931,203.65,203.59,1.36175931]
[1757037814259,8.08,203.65,203.59,1.36175931]
[1757037814860,8.08,203.65,203.58,7.78]
[1757037815060,8.08,203.65,203.59,1.36175931]
[1757037815264,8.08,203.69,203.61,9.14175931]
[1757037815650,8.08,203.69,203.63,1.36175931]
[1757037818463,8.08,203.69,203.61,7.78]
[1757037818657,8.08,203.69,203.62,1.36175931]
[1757037820862,8.08,203.69,203.61,7.78]
[1757037821060,8.08,203.69,203.63,1.36175931]
[1757037821658,8.08,203.69,203.54,7.78]
[1757037821862,1.36175931,203.65,203.58,42.04175931]
[1757037822063,9.44175931,203.65,203.58,1.36175931]
[1757037823365,8.08,203.65,203.58,1.36175931]
[1757037824164,8.08,203.63,203.56,1.36175931]
[1757037827462,8.08,203.63,203.55,7.78]
[1757037828367,8.08,203.63,203.54,2.12348806]